fUSD/lending_fUSD_20241119
["ID","MTS","AMOUNT","RATE_DAILY","PERIOD"]
[342667115,1732030238704,-361.0,0.00037799,2]
[342667116,1732030238715,-150.0,0.00037799,2]
[342667117,1732030238724,-150.0,0.00037799,2]
[342667118,1732030238734,-150.0,0.00037799,2]
[342667119,1732030238743,-150.0,0.00037799,2]
[342667120,1732030238754,-150.0,0.00037799,2]
[342667121,1732030238763,-150.0,0.00037799,2]
[342667122,1732030238773,-150.0,0.00037799,2]
[342667123,1732030238783,-1000.0,0.000379,15]
[342667124,1732030238792,-627.39997062,0.00038,120]
[342667125,1732030238801,-4527.40263435,0.00038,120]
[342667126,1732030238810,-1000.0,0.000382,15]
[342667127,1732030238819,-1000.0,0.000385,15]
[342667128,1732030238830,-151.0,0.0003863,120]
[342667129,1732030238839,-1000.0,0.000388,15]
[342667130,1732030238848,-1000.0,0.000391,15]
[342667131,1732030238857,-1000.0,0.000394,15]
[342667132,1732030238867,-1000.0,0.000397,15]
[342667133,1732030238878,-402.87336373,0.00039883,45]
[342667134,1732030238887,-2224.86483542,0.00039886,45]
[342667135,1732030238897,-402.87336373,0.00039886,45]
[342667136,1732030238908,-402.87336373,0.00039892,45]
[342667137,1732030238918,-2224.86483542,0.00039898,45]
[342667138,1732030238927,-20000.0,0.000399,2]
[342667139,1732030238938,-2224.86483542,0.00039906,45]
[342667140,1732030238947,-402.87336373,0.00039923,45]
[342667141,1732030238956,-2224.86483542,0.00039933,45]
[342667142,1732030238968,-500.0,0.00039939,2]
[342667143,1732030238978,-500.0,0.00039939,2]
[342667144,1732030238987,-500.0,0.00039939,2]
[342667145,1732030238997,-500.0,0.00039939,2]
[342667146,1732030239006,-500.0,0.00039939,2]
[342667147,1732030239016,-500.0,0.00039939,2]
[342667148,1732030239026,-500.0,0.00039939,2]
[342667149,1732030239035,-500.0,0.00039939,2]
[342667150,1732030239045,-500.0,0.00039939,2]
[342667151,1732030239060,-500.0,0.00039939,2]
[342667152,1732030239071,-500.0,0.00039939,2]
[342667153,1732030239081,-500.0,0.00039939,2]
[342667154,1732030239091,-500.0,0.00039939,2]
[342667155,1732030239100,-500.0,0.00039939,2]
[342667156,1732030239111,-500.0,0.00039939,2]
[342667157,1732030239120,-500.0,0.00039939,2]
[342667158,1732030239131,-500.0,0.00039939,2]
[342667159,1732030239144,-500.0,0.00039939,2]
[342667160,1732030239155,-500.0,0.00039939,2]
[342667161,1732030239164,-500.0,0.00039939,2]
[342667162,1732030239174,-500.0,0.00039939,2]
[342667163,1732030239186,-500.0,0.00039939,2]
[342667164,1732030239195,-500.0,0.00039939,2]
[342667165,1732030239204,-500.0,0.00039939,2]
[342667166,1732030239214,-500.0,0.00039939,2]
[342667167,1732030239224,-500.0,0.00039939,2]
[342667168,1732030239234,-500.0,0.00039939,2]
[342667169,1732030239244,-500.0,0.00039939,2]
[342667170,1732030239254,-500.0,0.00039939,2]
[342667171,1732030239264,-500.0,0.00039939,2]
[342667172,1732030239275,-500.0,0.00039939,2]
[342667173,1732030239284,-500.0,0.00039939,2]
[342667174,1732030239293,-500.0,0.00039939,2]
[342667175,1732030239302,-500.0,0.00039939,2]
[342667176,1732030239312,-500.0,0.00039939,2]
[342667177,1732030239321,-500.0,0.00039939,2]
[342667178,1732030239332,-500.0,0.00039939,2]
[342667179,1732030239341,-500.0,0.00039939,2]
[342667180,1732030239350,-500.0,0.00039939,2]
[342667181,1732030239360,-500.0,0.00039939,2]
[342667182,1732030239370,-500.0,0.00039939,2]
[342667183,1732030239380,-500.0,0.00039939,2]
[342667184,1732030239389,-500.0,0.00039939,2]
[342667185,1732030239399,-500.0,0.00039939,2]
[342667186,1732030239409,-500.0,0.00039939,2]
[342667187,1732030239419,-500.0,0.00039939,2]
[342667188,1732030239429,-500.0,0.00039939,2]
[342667189,1732030239438,-500.0,0.00039939,2]
[342667190,1732030239448,-500.0,0.00039939,2]
[342667191,1732030239458,-500.0,0.00039939,2]
[342667192,1732030239467,-500.0,0.00039939,2]
[342667193,1732030239477,-500.0,0.00039939,2]
[342667194,1732030239487,-500.0,0.00039939,2]
[342667195,1732030239497,-500.0,0.00039939,2]
[342667196,1732030239507,-500.0,0.00039939,2]
[342667197,1732030239517,-500.0,0.00039939,2]
[342667198,1732030239527,-500.0,0.00039939,2]
[342667199,1732030239536,-500.0,0.00039939,2]
[342667200,1732030239545,-500.0,0.00039939,2]
[342667201,1732030239554,-500.0,0.00039939,2]
[342667202,1732030239563,-500.0,0.00039939,2]
[342667203,1732030239574,-500.0,0.00039939,2]
[342667204,1732030239584,-500.0,0.00039939,2]
[342667205,1732030239594,-500.0,0.00039939,2]
[342667206,1732030239603,-500.0,0.00039939,2]
[342667207,1732030239613,-500.0,0.00039939,2]
[342667208,1732030239626,-500.0,0.00039939,2]
[342667209,1732030239636,-500.0,0.00039939,2]
[342667210,1732030239646,-500.0,0.00039939,2]
[342667211,1732030239656,-500.0,0.00039939,2]
[342667212,1732030239669,-500.0,0.00039939,2]
[342667213,1732030239679,-500.0,0.00039939,2]
[342667214,1732030239689,-500.0,0.00039939,2]
[342667215,1732030239698,-500.0,0.00039939,2]
[342667216,1732030239707,-500.0,0.00039939,2]
[342667217,1732030239716,-500.0,0.00039939,2]
[342667218,1732030239726,-500.0,0.00039939,2]
[342667219,1732030239735,-500.0,0.00039939,2]
[342667220,1732030239744,-500.0,0.00039939,2]
[342667221,1732030239753,-500.0,0.00039939,2]
[342667223,1732030239763,-500.0,0.00039939,2]
[342667224,1732030239772,-500.0,0.00039939,2]
[342667225,1732030239781,-500.0,0.00039939,2]
[342667226,1732030239791,-500.0,0.00039939,2]
[342667227,1732030239800,-500.0,0.00039939,2]
[342667228,1732030239810,-500.0,0.00039939,2]
[342667229,1732030239820,-500.0,0.00039939,2]
[342667230,1732030239834,-500.0,0.00039939,2]
[342667231,1732030239844,-500.0,0.00039939,2]
[342667232,1732030239853,-500.0,0.00039939,2]
[342667233,1732030239863,-500.0,0.00039939,2]
[342667234,1732030239873,-500.0,0.00039939,2]
[342667235,1732030239882,-500.0,0.00039939,2]
[342667236,1732030239891,-500.0,0.00039939,2]
[342667237,1732030239901,-500.0,0.00039939,2]
[342667238,1732030239911,-500.0,0.00039939,2]
[342667239,1732030239921,-500.0,0.00039939,2]
[342667240,1732030239930,-500.0,0.00039939,2]
[342667241,1732030239940,-500.0,0.00039939,2]
[342667242,1732030239950,-500.0,0.00039939,2]
[342667243,1732030239960,-500.0,0.00039939,2]
[342667244,1732030239969,-500.0,0.00039939,2]
[342667245,1732030239979,-500.0,0.00039939,2]
[342667246,1732030239988,-500.0,0.00039939,2]
[342667247,1732030239998,-500.0,0.00039939,2]
[342667248,1732030240007,-500.0,0.00039939,2]
[342667249,1732030240017,-500.0,0.00039939,2]
[342667250,1732030240027,-500.0,0.00039939,2]
[342667251,1732030240037,-500.0,0.00039939,2]
[342667252,1732030240047,-500.0,0.00039939,2]
[342667253,1732030240056,-500.0,0.00039939,2]
[342667254,1732030240066,-500.0,0.00039939,2]
[342667255,1732030240076,-500.0,0.00039939,2]
[342667256,1732030240085,-500.0,0.00039939,2]
[342667257,1732030240095,-500.0,0.00039939,2]
[342667258,1732030240104,-500.0,0.00039939,2]
[342667259,1732030240114,-500.0,0.00039939,2]
[342667260,1732030240123,-500.0,0.00039939,2]
[342667261,1732030240133,-500.0,0.00039939,2]
[342667262,1732030240145,-500.0,0.00039939,2]
[342667263,1732030240156,-500.0,0.00039939,2]
[342667264,1732030240165,-500.0,0.00039939,2]
[342667265,1732030240176,-500.0,0.00039939,2]
[342667266,1732030240187,-500.0,0.00039939,2]
[342667267,1732030240197,-500.0,0.00039939,2]
[342667268,1732030240206,-500.0,0.00039939,2]
[342667269,1732030240216,-500.0,0.00039939,2]
[342667270,1732030240226,-500.0,0.00039939,2]
[342667271,1732030240236,-500.0,0.00039939,2]
[342667272,1732030240246,-500.0,0.00039939,2]
[342667273,1732030240256,-500.0,0.00039939,2]
[342667274,1732030240266,-500.0,0.00039939,2]
[342667275,1732030240276,-500.0,0.00039939,2]
[342667276,1732030240286,-500.0,0.00039939,2]
[342667277,1732030240295,-500.0,0.00039939,2]
[342667278,1732030240306,-500.0,0.00039939,2]
[342667279,1732030240316,-500.0,0.00039939,2]
[342667280,1732030240328,-500.0,0.00039939,2]
[342667281,1732030240339,-500.0,0.00039939,2]
[342667282,1732030240349,-500.0,0.00039939,2]
[342667283,1732030240359,-500.0,0.00039939,2]
[342667284,1732030240368,-500.0,0.00039939,2]
[342667285,1732030240378,-500.0,0.00039939,2]
[342667286,1732030240387,-500.0,0.00039939,2]
[342667287,1732030240397,-500.0,0.00039939,2]
[342667288,1732030240407,-500.0,0.00039939,2]
[342667289,1732030240416,-500.0,0.00039939,2]
[342667290,1732030240427,-500.0,0.00039939,2]
[342667291,1732030240436,-500.0,0.00039939,2]
[342667292,1732030240446,-500.0,0.00039939,2]
[342667293,1732030240456,-500.0,0.00039939,2]
[342667294,1732030240466,-500.0,0.00039939,2]
[342667295,1732030240476,-500.0,0.00039939,2]
[342667296,1732030240485,-500.0,0.00039939,2]
[342667297,1732030240495,-500.0,0.00039939,2]
[342667298,1732030240505,-500.0,0.00039939,2]
[342667299,1732030240514,-500.0,0.00039939,2]
[342667300,1732030240523,-500.0,0.00039939,2]
[342667301,1732030240532,-500.0,0.00039939,2]
[342667302,1732030240542,-500.0,0.00039939,2]
[342667303,1732030240551,-500.0,0.00039939,2]
[342667304,1732030240561,-500.0,0.00039939,2]
[342667305,1732030240570,-500.0,0.00039939,2]
[342667306,1732030240582,-500.0,0.00039939,2]
[342667307,1732030240592,-500.0,0.00039939,2]
[342667308,1732030240601,-500.0,0.00039939,2]
[342667309,1732030240611,-500.0,0.00039939,2]
[342667310,1732030240621,-500.0,0.00039939,2]
[342667311,1732030240631,-500.0,0.00039939,2]
[342667312,1732030240642,-500.0,0.00039939,2]
[342667313,1732030240652,-2224.86483542,0.00039946,45]
[342667314,1732030240662,-402.87336373,0.00039969,45]
[342667315,1732030240672,-2224.86483542,0.00039971,45]
[342667316,1732030240683,-402.87336373,0.00039976,45]
[342667317,1732030240693,-627.39997062,0.0004,120]
[342667318,1732030240703,-12499.99,0.0004,120]
[342667319,1732030240713,-12499.99,0.0004,120]
[342667320,1732030240723,-12500.0,0.0004,120]
[342667321,1732030240733,-12499.99,0.0004,120]
[342667322,1732030240743,-12499.99,0.0004,120]
[342667323,1732030240753,-12500.0,0.0004,120]
[342667324,1732030240763,-6592.37,0.0004,30]
[342667325,1732030240773,-4527.40263435,0.0004,120]
[342667326,1732030240783,-747.48,0.0004,120]
[342667327,1732030240792,-8000.0,0.0004,30]
[342667328,1732030240802,-375.88,0.0004,120]
[342667329,1732030240811,-12499.99,0.0004,120]
[342667330,1732030240821,-7999.99,0.0004,30]
[342667331,1732030240834,-1956.35,0.0004,120]
[342667332,1732030240843,-2397.42,0.0004,120]
[342667333,1732030240853,-12500.0,0.0004,120]
[342667334,1732030240862,-12500.0,0.0004,120]
[342667335,1732030240872,-1000.0,0.0004,30]
[342667336,1732030240882,-1800.0,0.0004,41]
[342667337,1732030240892,-4790.95848902,0.0004,6]
[342667338,1732030240902,-500.0,0.0004,120]
[342667339,1732030240912,-151.0,0.0004,120]
[342667340,1732030240921,-151.19,0.00040123,2]
[342667341,1732030240931,-8000.0,0.0004015,30]
[342667342,1732030240941,-166.2,0.00040295,2]
[342667343,1732030240951,-1000.0,0.000403,30]
[342667344,1732030240961,-151.0,0.00040356,120]
[342667345,1732030240970,-12500.0,0.00040375,120]
[342667346,1732030240980,-12500.0,0.00040375,120]
[342667347,1732030240990,-12500.0,0.00040375,120]
[342667348,1732030241000,-12500.0,0.00040375,120]
[342667349,1732030241011,-150.0,0.00040412,60]
[342667350,1732030241022,-1484.98608285,0.00040412,60]
[342667351,1732030241031,-1000.0,0.000406,30]
[342667352,1732030241041,-12500.0,0.0004075,120]
[342667353,1732030241052,-12500.0,0.0004075,120]
[342667354,1732030241062,-12500.0,0.0004075,120]
[342667355,1732030241071,-12500.0,0.0004075,120]
[342667356,1732030241085,-11909.92120645,0.000409,120]
[342667357,1732030241094,-1000.0,0.000409,30]
[342667358,1732030241104,-50000.0,0.00041,41]
[342667359,1732030241114,-598.6,0.00041,120]
[342667360,1732030241123,-1800.0,0.00041,42]
[342667361,1732030241133,-520.50062347,0.00041095,30]
[342667362,1732030241145,-12500.0,0.00041125,120]
[342667363,1732030241154,-12500.0,0.00041125,120]
[342667364,1732030241164,-12500.0,0.00041125,120]
[342667365,1732030241173,-12500.0,0.00041125,120]
[342667366,1732030241183,-1000.0,0.000412,30]
[342667367,1732030241192,-169.79573086,0.0004122,14]
[342667368,1732030241202,-12500.0,0.000415,120]
[342667369,1732030241211,-12500.0,0.000415,120]
[342667370,1732030241224,-12500.0,0.000415,120]
[342667371,1732030241234,-12500.0,0.000415,120]
[342667372,1732030241245,-384.58939741,0.00041875,120]
[342667373,1732030241366,738.29,9.999e-05,2]
[342667374,1732030241387,-500.0,0.00039939,2]
[342667375,1732030241398,-2337.19021447,0.00041875,120]
[342667376,1732030241410,-9778.22038812,0.00041875,120]
[342667377,1732030241420,-12500.0,0.00041875,120]
[342667378,1732030241430,-12500.0,0.00041875,120]
[342667379,1732030241439,-12500.0,0.00041875,120]
[342667380,1732030241449,-1000.0,0.00041875,13]
[342667381,1732030241458,-1000.0,0.00041875,13]
[342667382,1732030241468,-1000.0,0.00041875,13]
[342667383,1732030241478,-1000.0,0.00041875,13]
[342667384,1732030241487,-1000.0,0.00041875,13]
[342667385,1732030241497,-1000.0,0.00041875,13]
[342667386,1732030241506,-1000.0,0.00041875,13]
[342667387,1732030241516,-1000.0,0.00041875,13]
[342667388,1732030241526,-1000.0,0.00041875,13]
[342667389,1732030241536,-1000.0,0.00041875,13]
[342667390,1732030241547,-1000.0,0.00041875,13]
[342667391,1732030241556,-1000.0,0.00041875,13]
[342667392,1732030241566,-1000.0,0.00041875,13]
[342667393,1732030241580,-1000.0,0.00041875,13]
[342667394,1732030241589,-1000.0,0.00041875,13]
[342667395,1732030241608,-1000.0,0.00041875,13]
[342667396,1732030241618,-1000.0,0.00041875,13]
[342667397,1732030241628,-1000.0,0.00041875,13]
[342667398,1732030241640,-1000.0,0.00041875,13]
[342667399,1732030241649,-1000.0,0.00041875,13]
[342667400,1732030241660,-1000.0,0.00041875,13]
[342667401,1732030241670,-1000.0,0.00041875,13]
[342667402,1732030241680,-1000.0,0.00041875,13]
[342667403,1732030241693,-1000.0,0.00041875,13]
[342667404,1732030241703,-1000.0,0.00041875,13]
[342667405,1732030241712,-1000.0,0.00041875,13]
[342667406,1732030241722,-1000.0,0.00041875,13]
[342667407,1732030241733,-1000.0,0.00041875,13]
[342667408,1732030241743,-1000.0,0.00041875,13]
[342667409,1732030241754,-1057.0,0.00041875,13]
[342667410,1732030241764,-50000.0,0.00042,42]
[342667411,1732030241963,-1800.0,0.00042,43]
[342667412,1732030241972,-151.0,0.00042082,120]
[342667413,1732030241982,-12500.0,0.0004225,120]
[342667414,1732030241991,-12500.0,0.0004225,120]
[342667415,1732030242001,-12500.0,0.0004225,120]
[342667416,1732030242010,-12499.95,0.0004225,120]
[342667417,1732030242019,-12500.0,0.00042625,120]
[342667418,1732030242028,-12500.0,0.00042625,120]
[342667419,1732030242037,-12500.0,0.00042625,120]
[342667420,1732030242047,-511.032439,0.000428,30]
[342667421,1732030242056,-50000.0,0.00043,43]
[342667422,1732030242066,-1254.79994125,0.00043,120]
[342667423,1732030242075,-9054.80526871,0.00043,120]
[342667424,1732030242089,-617156.07373531,0.00043,30]
[342667425,1732030242100,-12500.0,0.00043,120]
[342667426,1732030242109,-12500.0,0.00043,120]
[342667427,1732030242119,-12500.0,0.00043375,120]
[342667428,1732030242130,-12500.0,0.00043375,120]
[342667429,1732030242140,-12500.0,0.0004375,120]
[342667430,1732030242154,-12500.0,0.0004375,120]
[342667431,1732030242164,-481.25939489,0.000438,120]
[342667432,1732030242174,-618.21289075,0.00043999,2]
[342667433,1732030242183,-50000.0,0.00044,44]
[342667434,1732030242193,-48935.05881,0.00044,120]
[342667435,1732030242202,-1800.0,0.00044,45]
[342667436,1732030242212,-500.0,0.0004409,120]
[342667437,1732030242222,-12500.0,0.00044125,120]
[342667438,1732030242232,-12500.0,0.00044125,120]
[342667439,1732030242241,-12500.0,0.000445,120]
[342667440,1732030242251,-12500.0,0.000445,120]
[342667441,1732030242260,-500.0,0.00044638,120]
[342667442,1732030242270,-12500.0,0.00044875,120]
[342667443,1732030242279,-1553.25,0.00044875,120]
[342667444,1732030242289,-50000.0,0.00045,45]
[342667445,1732030242298,-800.0,0.00045,120]
[342667446,1732030242307,-34300.0,0.00045,120]
[342667447,1732030242317,-1800.0,0.00045,46]
[342667448,1732030242330,-499.999999,0.00045,120]
[342667449,1732030242341,-273.04,0.0004503,2]
[342667450,1732030242351,-12500.0,0.0004525,120]
[342667451,1732030242361,-182660.71225371,0.0004535,120]
[342667452,1732030242371,-719.80376558,0.0004535,90]
[342667453,1732030242381,-298.9913941,0.0004535,90]
[342667454,1732030242391,-12500.0,0.00045625,120]
[342667455,1732030242400,-1000.0,0.00045984,2]
[342667456,1732030242410,-50000.0,0.00046,46]
[342667457,1732030242419,-298932.74986678,0.00046,30]
[342667458,1732030242429,-3423.54462665,0.00046,120]
[342667459,1732030242438,-220.0,0.00046,120]
[342667460,1732030242447,-1568.49992656,0.00046,120]
[342667461,1732030242457,-12500.0,0.00046,120]
[342667462,1732030242467,-11318.50658589,0.00046,120]
[342667463,1732030242476,-12500.0,0.00046375,120]
[342667464,1732030242486,-163136.6333919,0.000465,120]
[342667465,1732030242496,-1304.849257,0.000465,30]
[342667466,1732030242506,-12500.0,0.0004675,120]
[342667467,1732030242516,-50000.0,0.00047,47]
[342667468,1732030242526,-12500.0,0.00047125,120]
[342667469,1732030242536,-500.0,0.00047434,7]
[342667470,1732030242545,-150.0,0.00047563,120]
[342667471,1732030242555,-811.61559429,0.00047575,40]
[342667472,1732030242563,-2330237.92627052,0.000476,30]
[342667473,1732030242574,-222.0,0.000476,30]
[342667475,1732030242587,-221.0,0.000476,30]
[342667477,1732030242596,-500.0,0.000479,17]
[342667478,1732030242606,-600.0,0.000479,17]
[342667480,1732030242615,-50000.0,0.00048,48]
[342667482,1732030242624,-6587.69969154,0.00048,120]
[342667483,1732030242639,-21379.4013289,0.00048,120]
[342667484,1732030242658,-5004.33713647,0.00048,120]
[342667485,1732030242676,-1331.23,0.00048424,120]
[342667486,1732030242688,-65640.17867186,0.00048797,120]
[342667487,1732030242698,-166.2,0.00048897,2]
[342667488,1732030242707,-290.43808759,0.00048969,7]
[342667489,1732030242716,-50000.0,0.00049,49]
[342667490,1732030242725,-529.0,0.00049,7]
[342667491,1732030242735,-170000.0,0.00049,120]
[342667492,1732030242745,-1500.0,0.00049015,14]
[342667493,1732030242755,-150.0,0.00049025,7]
[342667494,1732030242764,-150.0,0.0004903,7]
[342667495,1732030242773,-150.0,0.00049036,7]
[342667496,1732030242783,-150.0,0.00049041,7]
[342667497,1732030242792,-1500.0,0.00049046,14]
[342667498,1732030242801,-150.0,0.00049049,7]
[342667499,1732030242811,-150.0,0.00049049,7]
[342667500,1732030242820,-150.0,0.0004905,7]
[342667501,1732030242832,-150.0,0.00049052,7]
[342667502,1732030242842,-150.0,0.00049064,7]
[342667503,1732030242851,-150.0,0.00049064,7]
[342667504,1732030242860,-150.0,0.00049065,7]
[342667505,1732030242869,-150.0,0.00049067,7]
[342667506,1732030242879,-150.0,0.00049069,7]
[342667507,1732030242887,-1500.0,0.00049069,14]
[342667508,1732030242897,-250.8094241,0.0004907,2]
[342667509,1732030242906,-471.8692205,0.0004907,2]
[342667510,1732030242915,-377.443306,0.0004907,2]
[342667511,1732030242924,-1500.0,0.00049073,14]
[342667512,1732030242933,-150.0,0.00049074,7]
[342667513,1732030242942,-1500.0,0.00049077,14]
[342667514,1732030242952,-150.0,0.00049078,7]
[342667515,1732030242961,-150.0,0.00049079,7]
[342667517,1732030242971,-150.0,0.0004909,7]
[342667518,1732030242980,-150.0,0.0004909,7]
[342667519,1732030242990,-150.0,0.00049091,7]
[342667520,1732030242999,-150.0,0.00049091,7]
[342667521,1732030243008,-150.0,0.00049092,7]
[342667522,1732030243017,-150.0,0.00049094,7]
[342667523,1732030243027,-150.0,0.00049096,7]
[342667524,1732030243037,-150.0,0.00049098,7]
[342667525,1732030243046,-150.0,0.000491,7]
[342667526,1732030243056,-6303.251524,0.000491,2]
[342667527,1732030243065,-150.0,0.00049101,7]
[342667528,1732030243075,-150.0,0.00049101,7]
[342667529,1732030243087,-150.0,0.00049105,7]
[342667530,1732030243096,-150.0,0.00049112,7]
[342667531,1732030243105,-150.0,0.00049115,7]
[342667532,1732030243113,-150.0,0.00049116,7]
[342667533,1732030243123,-150.0,0.00049118,7]
[342667534,1732030243133,-150.0,0.0004912,7]
[342667536,1732030243143,-150.0,0.00049121,7]
[342667538,1732030243156,-150.0,0.00049126,7]
[342667539,1732030243165,-150.0,0.00049133,7]
[342667540,1732030243174,-150.0,0.00049133,7]
[342667541,1732030243185,-150.0,0.00049139,7]
[342667542,1732030243195,-150.0,0.00049149,14]
[342667543,1732030243205,-150.0,0.00049153,7]
[342667544,1732030243214,-150.0,0.00049154,7]
[342667545,1732030243226,-150.0,0.00049156,7]
[342667546,1732030243236,-150.0,0.00049159,7]
[342667547,1732030243245,-150.0,0.00049162,7]
[342667548,1732030243255,-150.0,0.00049162,7]
[342667549,1732030243265,-150.0,0.00049162,7]
[342667550,1732030243274,-150.0,0.00049165,7]
[342667551,1732030243284,-150.0,0.00049167,7]
[342667552,1732030243293,-150.0,0.00049168,7]
[342667553,1732030243303,-150.0,0.00049169,7]
[342667554,1732030243313,-150.0,0.00049169,7]
[342667555,1732030243323,-150.0,0.00049173,7]
[342667556,1732030243336,-150.0,0.00049174,7]
[342667557,1732030243346,-150.0,0.00049174,7]
[342667558,1732030243355,-150.0,0.00049176,7]
[342667559,1732030243364,-150.0,0.00049177,7]
[342667560,1732030243374,-150.0,0.00049177,7]
[342667561,1732030243383,-150.0,0.00049179,7]
[342667562,1732030243392,-150.0,0.00049181,7]
[342667563,1732030243401,-150.0,0.00049183,7]
[342667564,1732030243411,-150.0,0.00049188,7]
[342667565,1732030243421,-150.0,0.00049189,7]
[342667566,1732030243431,-150.0,0.00049192,7]
[342667567,1732030243440,-150.0,0.00049194,7]
[342667568,1732030243450,-220.0,0.00049196,2]
[342667569,1732030243460,-150.0,0.00049198,7]
[342667570,1732030243469,-150.0,0.00049201,7]
[342667571,1732030243478,-150.0,0.00049202,7]
[342667572,1732030243487,-150.0,0.00049205,7]
[342667573,1732030243495,-150.0,0.00049206,7]
[342667574,1732030243504,-150.0,0.00049206,7]
[342667575,1732030243514,-150.0,0.00049206,7]
[342667576,1732030243524,-150.0,0.00049206,7]
[342667577,1732030243533,-150.0,0.00049209,7]
[342667578,1732030243543,-150.0,0.0004921,7]
[342667579,1732030243552,-1500.0,0.00049211,14]
[342667580,1732030243561,-150.0,0.00049212,7]
[342667581,1732030243571,-150.0,0.00049214,7]
[342667582,1732030243582,-150.0,0.00049216,7]
[342667583,1732030243591,-150.0,0.00049217,7]
[342667584,1732030243600,-150.0,0.0004922,7]
[342667585,1732030243610,-150.0,0.00049221,7]
[342667586,1732030243619,-150.0,0.00049222,7]
[342667587,1732030243628,-150.0,0.00049226,7]
[342667589,1732030243637,-150.0,0.00049226,7]
[342667590,1732030243646,-150.0,0.00049228,7]
[342667592,1732030243655,-150.0,0.00049239,7]
[342667594,1732030243665,-150.0,0.00049249,7]
[342667596,1732030243674,-150.0,0.0004925,7]
[342667598,1732030243683,-150.0,0.00049254,7]
[342667600,1732030243692,-150.0,0.00049257,7]
[342667601,1732030243702,-150.0,0.0004926,7]
[342667603,1732030243711,-150.0,0.00049266,7]
[342667605,1732030243721,-150.0,0.00049268,7]
[342667607,1732030243731,-150.0,0.00049268,7]
[342667609,1732030243739,-150.0,0.00049271,7]
[342667611,1732030243748,-150.0,0.00049275,7]
[342667613,1732030243758,-150.0,0.00049279,7]
[342667615,1732030243767,-150.0,0.00049286,7]
[342667616,1732030243776,-150.0,0.00049289,7]
[342667618,1732030243786,-150.0,0.00049291,7]
[342667620,1732030243795,-150.0,0.00049291,7]
[342667622,1732030243804,-150.0,0.00049291,7]
[342667624,1732030243814,-150.0,0.00049294,7]
[342667626,1732030243823,-150.0,0.00049295,7]
[342667628,1732030243834,-150.01,0.00049295,2]
[342667630,1732030243843,-956127.21317654,0.00049296,120]
[342667632,1732030243852,-3000.0,0.00049296,67]
[342667633,1732030243862,-11204.70565,0.00049296,2]
[342667635,1732030243871,-2000.0,0.00049296,7]
[342667637,1732030243880,-200.0,0.00049296,7]
[342667639,1732030243889,-596.4360274,0.00049296,2]
[342667641,1732030243898,-1000.0,0.000493,30]
[342667643,1732030243907,-12371.79357796,0.000493,120]
[342667645,1732030243917,-800.0,0.00049315,12]
[342667647,1732030243927,-800.0,0.00049315,12]
[342667649,1732030243935,-215544.77,0.00049315,90]
[342667650,1732030243944,-70000.0,0.0004933,120]
[342667652,1732030243954,-677.1656,0.00049365,120]